{"text_format":"2","workbook":"xlsx","n_sheets":1,"sheets":["Selfassessment"],"not_rendered":{"charts":0,"images":0,"macros":0,"external_links":0,"defined_names":1,"comments":0,"pivot_tables":0},"unopened":[],"bounds":{"document_bytes":16777216,"sheet_cells":100000,"run_cost":"one","rows_first":2000,"rows_last":500,"rows_between":2000,"halvings":0,"cell_chars":16384,"cell_head_chars":4096},"cells_cut":0,"cells_raw":0,"read":"whole","date_system":"1900"}

{"sheet":"Selfassessment","index":0,"n_rows":29,"n_cols":7,"rows_kept":29,"cut":false,"hidden":false,"merged":[]}
[]
[null,"Selfassessment - Erkennings- en intrekkingskader uitvoering persoonlijke ondersteuning UWV"]
[]
["Eis","Omschrijving","Verklaring ","Akkoord","Voldoet","Opmerking","validatie"]
["A.2.1","Betrouwbaarheid van de aanbieder tot erkenning als Jobcoachorganisatie:                                                                                        \n\nOp basis van voornemens, handelingen, antecedenten is er voor UWV geen aanleiding om aan de betrouwbaarheid van het bedrijf dat een aanvraag tot erkenning als Jobcoachorganisatie doet, te twijfelen, zie paragraaf 2.1. van het Erkenningskader.","Aanbieder verklaart dat er geen aanleiding is voor het UWV om aan de betrouwbaarheid van de aanbieder te twijfelen.","Niet ingevuld",{"$f":"VLOOKUP(D5,$D$17:$E$19,2,0)","v":"Geen waardering mogelijk"},{"$f":"VLOOKUP(D5,$D$17:$F$19,3,0)","v":"Indien u deze vraag niet invult kunt u zich niet inschrijven"},{"$f":"VLOOKUP(D5,$D$17:$G$19,4,0)","v":0}]
["A.2.2","Inschrijving bij de Kamer van Koophandel of in het nationale beroeps-/ handelsregister:\n\nHet bedrijf staat ingeschreven bij de Kamer van Koophandel of in het nationale beroeps-/ handelsgeregister zoals staat beschreven in paragraaf 2.2 van het Erkenningskader.                                                                                     ","Aanbieder verklaart te beschikken over een inschrijvingsbewijs van de Kamer van Koophandel of het nationale beroeps-/ handelsregister en verklaart andere informatie betreffende concernrelaties en/of onderaannemers op eerste verzoek van UWV te overleggen.\n\nTevens verklaart aanbieder ingeschreven te staan als rechtspersoon bij de Kamer van Koophandel of in het nationale beroeps-/handelsregister.\n\nRechtspersonen zijn:\n* Besloten Vennoorschap (BV)\n* Naamloze Vennootschap (NV)\n* Vereniging\n* Coöperatie en onderlinge waarborgmaatschappij\n* Stichting","Niet ingevuld","Geen waardering mogelijk","Indien u deze vraag niet invult kunt u zich niet inschrijven",0]
["A.2.3","Bedrijfsaansprakelijkheidsverzekering:\n\nAanbieder voldoet aan de door UWV gestelde eisen betreffende een passende aansprakelijkheidsverzekering zoals staat beschreven in paragraaf 2.3 van het Erkenningskader.","Aanbieder verklaart te beschikken over een bedrijfsaansprakelijkheidsverzekering waarbij de aanbieder verzekerd is voor de aansprakelijkheid voor zaak- en personenschade door een verkeerde (be)handeling, een nalatigheid of een bedrijfsfout.","Niet ingevuld","Geen waardering mogelijk","Indien u deze vraag niet invult kunt u zich niet inschrijven",0]
["A.2.4","Kwaliteit van de Jobcoaching:\n\nAanbieder kan voldoende kwaliteit van Jobcoaching borgen zoals staat beschreven in paragraaf 2.4 van het Erkenningskader.","Aanbieder verklaart te beschikken over voldoende vakbekwaam personeel, kan een minimale bezetting borgen voor de continuïteit van de dienstverlening, heeft een interne beschrijving van de werkprocessen en verklaart dat de Jobcoaches de Nederlandse taal in woord en geschrift goed beheersen.","Niet ingevuld","Geen waardering mogelijk","Indien u deze vraag niet invult kunt u zich niet inschrijven",0]
["A.2.5","Privacy:\n\nAanbieder neemt de normen met betrekking tot privacy voortdurend in acht, heeft een privacystatement volgens de eisen van de AVG en voldoet aan de bepalingen zoals staat beschreven in paragraaf 2.5 van het Erkenningskader.","Aanbieder verklaart een privacystatement te hebben en te voldoen aan de bepalingen. Daarnaast neemt aanbieder de normen met betrekking tot privacy voordurend in acht.","Niet ingevuld","Geen waardering mogelijk","Indien u deze vraag niet invult kunt u zich niet inschrijven",0]
["A.2.6","Klachtenreglement:\n\nAanbieder neemt de normen met betrekking tot klachten voortdurend in acht, zoals staat beschreven in paragraaf 2.6 van het Erkenningskader.","Aanvrager verklaart voortdurend te voldoen aan de door UWV gestelde aspecten met betrekking tot klachtenmanagement. ","Niet ingevuld","Geen waardering mogelijk","Indien u deze vraag niet invult kunt u zich niet inschrijven",0]
["A.2.7","Uitsluiting:\n\nIndien een aanvraag tot erkenning wordt ingediend nadat door UWV de erkenning van aanbieder is ingetrokken, dan wordt deze nieuwe aanvraag niet eerder ingediend dan na verstrijken van de uitsluitingstermijn welke in de beslissing van UWV is vastgelegd. Bij de nieuwe aanvraag weegt UWV de reden van intrekking van de vorige erkenning mee. Beschreven in paragraaf 2.7 van het Erkenningskader.\n","Aanbieder verklaart dat de nieuwe aanvraag, na een eerdere intrekking van de erkenning, niet eerder dan na het verstrijken van de uitsluitingstermijn wordt ingediend.","Niet ingevuld","Geen waardering mogelijk","Indien u deze vraag niet invult kunt u zich niet inschrijven",0]
["Verplichting","Omschrijving","Verklaring ","Akkoord","Voldoet","Opmerking","validatie"]
["B.3.1 \nt/m 3.8","Verplichtingen die voortvloeien uit de erkenning als Jobcoachorganisatie:\n\nIn het geval een Aanbieder is erkend als Jobcoachorganisatie, dan blijft hij zich conformeren aan de verplichtingen zoals opgenomen in hoofdstuk 3 van het Erkenningskader.","Aanbieder verklaart zich voortdurend te conformeren aan de verplichtingen zoals opgenomen in hoofdstuk 3 van het Erkenningskader:\n\n3.1: Toepasselijkheid Beleidsregels UWV\n     3.1.1: Protocol Jobcoach\n     3.1.2: Beleidsregel UWV Normbedragen Voorzieningen\n3.2: Borging onafhankelijkheid als Jobcoachorganisatie\n3.3: Verplichting tot het voeren van een deugdelijke administratie\n3.4: Uitbesteding Jobcoaching\n3.5: Klanttevredenheid\n3.6: Verlenen van medewerking aan periodiek overleg en controles\n3.7: Verplicht gebruik Jobcoachportaal\n3.8: Wijziging bedrijfsorganisatie","Niet ingevuld",{"$f":"VLOOKUP(D13,$D$17:$E$19,2,0)","v":"Geen waardering mogelijk"},{"$f":"VLOOKUP(D13,$D$17:$F$19,3,0)","v":"Indien u deze vraag niet invult kunt u zich niet inschrijven"},{"$f":"VLOOKUP(D13,$D$17:$G$19,4,0)","v":0}]
[]
[{"$nulls":4},{"$f":"VLOOKUP(G15,E21:F31,2,0)","v":"U kunt zich niet inschrijven"},null,{"$f":"SUM(G5:G13)","v":0}]
[]
[null,null,null,"Niet ingevuld","Geen waardering mogelijk","Indien u deze vraag niet invult kunt u zich niet inschrijven",0]
[null,null,null,"Akkoord","ja","Indien op alle eisen een akkoord verklaring wordt ontvangen kunt u zich inschrijven  ",1]
[null,null,null,"Niet akkoord","Neen","Indien u niet akkoord gaat kunt u zich niet inschrijven",0]
[]
[{"$nulls":4},0,"U kunt zich niet inschrijven"]
[{"$nulls":4},1,"U kunt zich niet inschrijven"]
[{"$nulls":4},2,"U kunt zich niet inschrijven"]
[{"$nulls":4},3,"U kunt zich niet inschrijven"]
[{"$nulls":4},4,"U kunt zich niet inschrijven"]
[{"$nulls":4},5,"U kunt zich niet inschrijven"]
[{"$nulls":4},6,"U kunt zich niet inschrijven"]
[{"$nulls":4},7,"U kunt zich niet inschrijven"]
[{"$nulls":4},8,"U kunt uw aanvraag tot erkennning indienen"]